{"text_format":"1","workbook":"xlsx","n_sheets":12,"sheets":["Inicio","Antecedentes Organización","Antecedentes Unidad AI","Antecedentes Estratégicos AI","Factores de Exito","Carta Gantt Tareas","Carta Gantt Metas","Resul. Analisis Foda","Instituciones","Carta Gantt Metas_respaldo","Carta Gantt Tareas_respaldo","Datos"],"not_rendered":{"charts":0,"images":0,"macros":1,"external_links":0,"defined_names":90,"comments":4,"pivot_tables":0},"unopened":[],"bounds":{"document_bytes":16777216,"sheet_cells":100000,"rows_first":2000,"rows_last":500,"rows_between":2000,"halvings":0,"cell_chars":16384,"cell_head_chars":4096},"cells_cut":0,"cells_raw":0,"read":"whole","date_system":"1900"}

{"sheet":"Inicio","index":0,"n_rows":12,"n_cols":2,"rows_kept":12,"cut":false,"hidden":false,"merged":[[2,1,4,2]]}
[]
[]
[null,"Plan Estratégico de Auditoría Interna"]
[]
[]
[]
[null,"MINISTERIO"]
[null,"SERVICIO"]
[null,"SERV. DEPENDIENTE"]
[null,"REGION"]
[null,"VERSIÓN"]
[null,"FECHA DE EMISIÓN"]

{"sheet":"Antecedentes Organización","index":1,"n_rows":6,"n_cols":2,"rows_kept":6,"cut":false,"hidden":false,"merged":[[1,1,1,9],[2,2,2,9],[3,2,3,9],[4,2,4,9],[5,2,5,9]]}
[]
[null,"I. Antecedentes De La Organización\n\n"]
[null,"Visión"]
[null,"Misión"]
[null,"Objetivos Estratégicos de la Organización"]
[null,"Indicar tipo de archivo donde se incluye organigrama"]

{"sheet":"Antecedentes Unidad AI","index":2,"n_rows":10,"n_cols":3,"rows_kept":10,"cut":false,"hidden":false,"merged":[[2,1,2,9],[3,2,3,9],[8,1,8,2]]}
[]
[]
[null,"II. Antecedentes De La Unidad De Auditoría Interna"]
[null,"Describir Dependencia Jerárquica"]
[null,"Presupuesto anual de la unidad (monto)"]
[null,"Indicar tipo de archivo donde se incluye organigrama"]
[]
[null,"N° Total de personas en la Unidad de Auditoria"]
[null,"Recursos Humanos de la unidad "]
[null,"Cargo","Profesión"]

{"sheet":"Antecedentes Estratégicos AI","index":3,"n_rows":9,"n_cols":2,"rows_kept":9,"cut":false,"hidden":false,"merged":[[3,1,3,9],[4,2,4,9],[5,2,5,9],[6,2,6,9],[7,2,7,9]]}
[]
[]
[]
[null,"III. Antecedentes Estratégicos De Auditoría Interna"]
[null,"Visión"]
[null,"Misión"]
[null,"Principios y Valores de Auditoría Interna"]
[null,"Objetivos Estratégicos de la Auditoría Interna"]
[null,"¿Se adjunta anexo con Análisis FODA de Auditoría Interna?"]

{"sheet":"Factores de Exito","index":4,"n_rows":6,"n_cols":20,"rows_kept":6,"cut":false,"hidden":false,"merged":[[1,1,1,3],[4,7,4,11],[3,1,3,6],[4,16,4,19],[4,12,4,15]]}
[]
[null,"Generar Cartas Gantt"]
[]
[null,"IV. Factores Críticos de Éxito e Iniciativas Claves a desarrollar por la Unidad De Auditoría Interna"]
[null,null,null,null,null,null,null,"Tareas Claves",null,null,null,null,"Metas",null,null,null,"Referencia a Analisis FODA"]
[null,"N° Factor Critico de Éxito","Factor Critico de Éxito","N° Iniciativa","Iniciativa","Ambito","Objetivo(s) de la Iniciativa","N° Tarea","Tarea Clave","Fecha de Inicio de la Tarea","Fecha de Término de la Tarea","Recursos Necesarios","N° Meta","Meta","Plazo","Responsable(s)","Nº Fortalezas","Nº Oportunidades","Nº Debilidades","Nº Amenazas"]

{"sheet":"Carta Gantt Tareas","index":5,"n_rows":4,"n_cols":65,"rows_kept":4,"cut":false,"hidden":false,"merged":[[2,53,2,64],[2,41,2,52],[1,1,1,28],[2,1,2,4],[2,29,2,40],[2,17,2,28],[2,5,2,16]]}
[]
[null,"Carta Gantt de Cumplimiento de Tareas Periodo 2018-2021"]
[null,"Iniciativas y Tareas Contenidas en el Plan Estratégico de Auditoría Interna",null,null,null,2018,null,null,null,null,null,null,null,null,null,null,null,2019,null,null,null,null,null,null,null,null,null,null,null,2020,null,null,null,null,null,null,null,null,null,null,null,2021,null,null,null,null,null,null,null,null,null,null,null,2022]
[null,"N° iniciativa","Iniciativa","N°  Tarea","Tarea","Enero","Febrero","Marzo","Abril","Mayo","Junio","Julio","Agosto","Septiembre","Octubre","Noviembre","Diciembre","Enero","Febrero","Marzo","Abril","Mayo","Junio","Julio","Agosto","Septiembre","Octubre","Noviembre","Diciembre","Enero","Febrero","Marzo","Abril","Mayo","Junio","Julio","Agosto","Septiembre","Octubre","Noviembre","Diciembre","Enero","Febrero","Marzo","Abril","Mayo","Junio","Julio","Agosto","Septiembre","Octubre","Noviembre","Diciembre","Enero","Febrero","Marzo","Abril","Mayo","Junio","Julio","Agosto","Septiembre","Octubre","Noviembre","Diciembre"]

{"sheet":"Carta Gantt Metas","index":6,"n_rows":5,"n_cols":65,"rows_kept":5,"cut":false,"hidden":false,"merged":[[3,53,3,64],[2,1,2,28],[3,41,3,52],[3,1,3,4],[3,29,3,40],[3,5,3,16],[3,17,3,28]]}
[]
[]
[null,"Carta Gantt de Cumplimiento de Metas Periodo 2018-2021"]
[null,"Iniciativas y Metas Contenidas en el Plan Estratégico de Auditoría Interna",null,null,null,2018,null,null,null,null,null,null,null,null,null,null,null,2019,null,null,null,null,null,null,null,null,null,null,null,2020,null,null,null,null,null,null,null,null,null,null,null,2021,null,null,null,null,null,null,null,null,null,null,null,2022]
[null,"N° iniciativa","Iniciativa","N° Meta","Meta","Enero","Febrero","Marzo","Abril","Mayo","Junio","Julio","Agosto","Septiembre","Octubre","Noviembre","Diciembre","Enero","Febrero","Marzo","Abril","Mayo","Junio","Julio","Agosto","Septiembre","Octubre","Noviembre","Diciembre","Enero","Febrero","Marzo","Abril","Mayo","Junio","Julio","Agosto","Septiembre","Octubre","Noviembre","Diciembre","Enero","Febrero","Marzo","Abril","Mayo","Junio","Julio","Agosto","Septiembre","Octubre","Noviembre","Diciembre","Enero","Febrero","Marzo","Abril","Mayo","Junio","Julio","Agosto","Septiembre","Octubre","Noviembre","Diciembre"]

{"sheet":"Resul. Analisis Foda","index":7,"n_rows":6,"n_cols":9,"rows_kept":6,"cut":false,"hidden":false,"merged":[[4,1,4,4],[4,5,4,8],[1,1,1,8]]}
[]
[null,"Resultado De Análisis Foda"]
[]
[]
[null,"Factores Internos",null,null,null,"Factores Externos"]
[null,"Nº","Fortalezas","Nº","Debilidades","Nº","Oportunidades","Nº","Amenazas"]

{"sheet":"Instituciones","index":8,"n_rows":295,"n_cols":73,"rows_kept":295,"cut":false,"hidden":true,"merged":[]}
["MINISTERIO","EMPRESAS ESTADO","AGRICULTURA","BIENES NACIONALES","CULTURAS LAS ARTES Y EL PATRIMONIO CULTURAL","DEFENSA NACIONAL","ECONOMÍA FOMENTO Y TURISMO","EDUCACIÓN","ENERGÍA","HACIENDA","INTERIOR Y SEGURIDAD PÚBLICA","JUSTICIA","MEDIO AMBIENTE","MINERÍA","OBRAS PÚBLICAS","DESARROLLO SOCIAL","PRESIDENCIA DE LA REPÚBLICA","RELACIONES EXTERIORES","SALUD","SECRETARÍA GENERAL DE GOBIERNO","SECRETARÍA GENERAL DE LA PRESIDENCIA DE LA REPÚBLICA","MUJER Y LA EQUIDAD DE GÉNERO","TRABAJO Y PREVISIÓN SOCIAL","TRANSPORTES Y TELECOMUNICACIONES","VIVIENDA Y URBANISMO","DEPORTE","DIVISION","AGUAS ANDINAS S.A.","ASTILLEROS Y MAESTRANZAS DE LA ARMADA","BANCO ESTADO DE CHILE","CASA DE MONEDA","COMERCIALIZADORA DE TRIGO","CODELCO","DESARROLLO DE TECNOLOGÍA Y SISTEMAS LIMITADA","CONCESIONARIA DE SERVICIOS SANITARIOS","ABASTECIMIENTO DE ZONAS AISLADAS","CORREOS DE CHILE","FERROCARRILES DEL ESTADO","SERVICIOS SANITARIOS LAGO PEÑUELAS","METRO S.A","EMPRESA NACIONAL DE MINERÍA","EMPRESA NACIONAL DEL CARBÓN S.A","EMPRESA NACIONAL DEL PETRÓLEO","LA NACIÓN S.A.","PORTUARIA ANTOFAGASTA","PORTUARIA ARICA","PORTUARIA AUSTRAL","PORTUARIA CHACABUCO","PORTUARIA COQUIMBO","PORTUARIA IQUIQUE","PORTUARIA PUERTO MONTT","PORTUARIA SAN ANTONIO","PORTUARIA TALCAHUANO-SAN VICENTE","PORTUARIA VALPARAÍSO","ESSAL S.A.","ESSBÍO S.A.","ESVAL S.A.","FÁBRICA Y MAESTRANZAS DEL EJÉRCITO","POLLA CHILENA DE BENEFICENCIA","PUERTO MADERO IMPRESORES","SOCIEDAD AGRÍCOLA SACOR","SOCIEDAD AGRÍCOLA Y SERVICIOS ISLA DE PASCUA LTDA","TELEVISIÓN NACIONAL DE CHILE","ZONA FRANCA DE IQUIQUE S.A","REGION","","","","","","","",""]
["AGRICULTURA","ASTILLEROS Y MAESTRANZAS DE LA ARMADA","CENTRO DE INFORMACIÓN DE RECURSOS NATURALES","SUBSECRETARÍA DE BIENES NACIONALES","SUBSECRETARÍA DE LAS CULTURAS Y LAS ARTES","ACADEMIA NACIONAL DE ESTUDIOS POLÍTICOS Y ESTRATÉGICOS","AGENCIA DE LA PROMOCIÓN DE LA INVERSIÓN EXTRANJERA","AGENCIA DE CALIDAD ","COMISIÓN CHILENA DE ENERGÍA NUCLEAR","CONSEJO DE DEFENSA DEL ESTADO","DIRECCIÓN DE PREVISIÓN DE CARABINEROS DE CHILE","CORPORACIÓN DE ASISTENCIA JUDICIAL BÍO-BÍO","SERVICIO DE EVALUACIÓN AMBIENTAL","COMISIÓN CHILENA DEL COBRE","DIRECCIÓN DE AEROPUERTOS","CORPORACIÓN NACIONAL DE DESARROLLO INDÍGENA","DIRECCIÓN ADMINISTRATIVA DE LA PRESIDENCIA","AGENCIA DE COOPERACIÓN INTERNACIONAL DE CHILE ","CENTRAL DE ABASTECIMIENTO DEL SISTEMA NACIONAL DE SERVICIOS DE SALUD","CONSEJO NACIONAL DE TELEVISIÓN ","SUBSECRETARÍA GENERAL DE LA PRESIDENCIA DE LA REPÚBLICA","SERVICIO NACIONAL DE LA MUJER Y LA EQUIDAD DE GÉNERO","DIRECCIÓN DEL TRABAJO ","JUNTA DE AERONÁUTICA CIVIL","PARQUE METROPOLITANO DE SANTIAGO","INSTITUTO NACIONAL DE DEPORTES ","AUDITORIA ADMINISTRATIVA",null,"Sociber Ltda.","BancoEstado Corredores de Seguros S.A.",null,null,"Agua de la falda S.A.",null,null,null,null,"Desarrollo Inmobiliario San Bernardo S. A.",null,null,"Cia. Minera Nacional Ltda.",null,"A&C Pipeline Holding (I. Cayman)","Base de Datos del Diario Oficial S.A.",null,null,null,null,null,null,null,null,null,null,null,null,null,"Arcomet S.A.",null,null,null,null,null,null,"ARICA Y PARINACOTA",null,null,null,{"$f":"TRIM($A2)","v":"AGRICULTURA"}]
["BIENES NACIONALES","BANCO ESTADO DE CHILE","COMISIÓN NACIONAL DE RIEGO",null,"SUBSECRETARÍA DEL PATRIMONIO CULTURAL","CAJA DE PREVISIÓN DE LA DEFENSA NACIONAL","CORPORACIÓN DE FOMENTO DE LA PRODUCCIÓN","COMISIÓN NACIONAL DE INVESTIGACIÓN CIENTÍFICA Y TECNOLÓGICA","COMISIÓN NACIONAL DE ENERGÍA","DIRECCIÓN DE COMPRAS Y CONTRATACIÓN PÚBLICA","GOBIERNO REGIONAL DE ANTOFAGASTA","CORPORACIÓN DE ASISTENCIA JUDICIAL REGIÓN METROPOLITANA","SUBSECRETARÍA DEL MEDIO AMBIENTE","SERVICIO NACIONAL DE GEOLOGÍA Y MINERÍA","DIRECCIÓN DE ARQUITECTURA","FONDO DE SOLIDARIDAD E INVERSIÓN SOCIAL",null,"DIRECCIÓN DE FRONTERAS Y LIMITES DEL ESTADO ","CENTRO DE REFERENCIA DE SALUD DE MAIPÚ","SUBSECRETARÍA GENERAL DE GOBIERNO",null,"SUBSECRETARÍA DE LA MUJER Y LA EQUIDAD DE GÉNERO","DIRECCIÓN GENERAL DE CRÉDITO PRENDARIO ","SUBSECRETARÍA DE TELECOMUNICACIONES","SERVIU METROPOLITANO","SUBSECRETARÍA DE DEPORTES","INFRAESTRUCTURA Y REGULACIÓN",null,"Sisdef Ltda.","BancoEstado S.A. Corredores de Bolsa S.A.",null,null,"Asociación Garantizadora de Pensiones",null,null,null,null,"Empresa de Transporte Suburbano de Pasajeros S.A. (Transub S.A.)",null,null,"Cia. Minera Quebrada Blanca S.A.",null,"Biocomsa S.A.","Empresa Periodística La Voz S.A.",null,null,null,null,null,null,null,null,null,null,null,null,null,"Fundac S.A.",null,null,null,null,null,null,"TARAPACÁ",null,null,null,{"$f":"TRIM($A3)","v":"BIENES NACIONALES"}]
["CULTURAS LAS ARTES Y EL PATRIMONIO CULTURAL","CASA DE MONEDA","CORPORACIÓN NACIONAL FORESTAL",null,"SERVICIO NACIONAL DEL PATRIMONIO CULTURAL","DEFENSA CIVIL DE CHILE","FISCALÍA NACIONAL ECONÓMICA","COMISIÓN NACIONAL DE ACREDITACIÓN","SUBSECRETARÍA DE ENERGÍA","DIRECCIÓN DE PRESUPUESTOS","GOBIERNO REGIONAL DE ARICA Y PARINACOTA","CORPORACIÓN DE ASISTENCIA JUDICIAL TARAPACÁ Y ANTOFAGASTA","SUPERINTENDENCIA DEL MEDIO AMBIENTE","SUBSECRETARÍA DE MINERÍA","DIRECCIÓN DE CONTABILIDAD Y FINANZAS","INSTITUTO NACIONAL DE LA JUVENTUD",null,"DIRECCIÓN GENERAL DE RELACIONES ECONÓMICAS INTERNACIONALES ","CENTRO DE REFERENCIA DE SALUD DE PEÑALOLÉN CORDILLERA ORIENTE",null,null,null,"INSTITUTO DE PREVISIÓN SOCIAL ","SUBSECRETARÍA DE TRANSPORTES","SERVIU REGIÓN I",null,"TOMA DE RAZON Y REGISTRO",null,"Empresa Nacional de Aeronáutica (ENAER)","BancoEstado Servicios de Cobranza S.A.",null,null,"Biosigma S.A.",null,null,null,null,"Ferrocarril de Arica a La Paz S.A.",null,null,"Cia. Minera Carmen de Andacollo S.A.",null,"Compañía Hidrógeno del BíoBío S.A.","Distribuidora Vía Directa S. A.",null,null,null,null,null,null,null,null,null,null,null,null,null,"S2T S.A.",null,null,null,null,null,null,"ANTOFAGASTA",null,null,null,{"$f":"TRIM($A4)","v":"CULTURAS LAS ARTES Y EL PATRIMONIO CULTURAL"}]
["DEFENSA NACIONAL","CENTRO DE INVESTIGACIÓN  MINERA Y METALÚRGICA ","FUNDACIÓN DE COMUNICACIÓN, CAPACITACIÓN Y CULTURA DEL AGRO",null,null,"DIRECCIÓN GENERAL DE AERONÁUTICA CIVIL","INSTITUTO NACIONAL DE ESTADÍSTICAS","CONSEJO NACIONAL DE EDUCACIÓN","SUPERINTENDENCIA DE ELECTRICIDAD Y COMBUSTIBLES","DIRECCIÓN NACIONAL DEL SERVICIO CIVIL","GOBIERNO REGIONAL DE ATACAMA","CORPORACIÓN DE ASISTENCIA JUDICIAL VALPARAÍSO",null,null,"DIRECCIÓN DE OBRAS HIDRÁULICAS","SERVICIO NACIONAL DE LA DISCAPACIDAD",null,"INSTITUTO ANTÁRTICO CHILENO ","FONDO NACIONAL DE SALUD",null,null,null,"INSTITUTO DE SEGURIDAD LABORAL ",null,"SERVIU REGIÓN II",null,"AUDITORÍAS ESPECIALES",null,null,"BancoEstado Microempresas S.A., Asesorías Financieras",null,null,"Centro de Especialidades Médicas Río Blanco Ltda.",null,null,null,null,"Ferrocarriles Suburbanos de Concepción S.A.",null,null,null,null,"Compañía Latinoamericana Petrolera S.A.",null,null,null,null,null,null,null,null,null,null,null,null,null,null,null,null,null,null,null,null,null,"ATACAMA",null,null,null,"DEFENSA NACIONAL"]
["DEPORTE","COMERCIALIZADORA DE TRIGO","FUNDACIÓN PARA LA INNOVACIÓN AGRARIA",null,null,"DIRECCIÓN GENERAL DE MOVILIZACIÓN NACIONAL","INSTITUTO NACIONAL DE PROPIEDAD INDUSTRIAL","JUNTA NACIONAL DE AUXILIO ESCOLAR Y BECAS",null,"SERVICIO DE IMPUESTOS INTERNOS","GOBIERNO REGIONAL DE AYSÉN","DEFENSORÍA PENAL PÚBLICA",null,null,"DIRECCIÓN DE OBRAS PORTUARIAS","SERVICIO NACIONAL DEL ADULTO MAYOR",null,"SUBSECRETARÍA DE RELACIONES EXTERIORES","HOSPITAL PADRE ALBERTO HURTADO",null,null,null,"SERVICIO NACIONAL DE CAPACITACIÓN Y EMPLEO ",null,"SERVIU REGIÓN III",null,"CGR REGIONAL",null,null,"BancoEstado S.A. Administradora General de Fondos",null,null,"Chile Copper Limited",null,null,null,null,"Infraestructura y Tráfico Ferroviario S.A.",null,null,null,null,"Empresa Nacional de Geotermia S.A.",null,null,null,null,null,null,null,null,null,null,null,null,null,null,null,null,null,null,null,null,null,"COQUIMBO",null,null,null,{"$f":"TRIM($A8)","v":"ECONOMÍA FOMENTO Y TURISMO"}]
["DESARROLLO SOCIAL","CODELCO","INSTITUTO DE DESARROLLO AGROPECUARIO",null,null,"ESTADO MAYOR CONJUNTO","SERVICIO DE COOPERACIÓN TÉCNICA","JUNTA NACIONAL DE JARDINES INFANTILES",null,"SERVICIO DE TESORERÍAS","GOBIERNO REGIONAL DE BÍO-BÍO","GENDARMERÍA DE CHILE",null,null,"DIRECCIÓN DE PLANEAMIENTO","SUBSECRETARÍA DE EVALUACIÓN SOCIAL",null,null,"INSTITUTO DE SALUD PÚBLICA DE CHILE",null,null,null,"SUBSECRETARÍA DE PREVISIÓN SOCIAL ",null,"SERVIU REGIÓN IV",null,null,null,null,"BancoEstado Contacto 24 Horas S.A.",null,null,"CK Metall Agentur GmbH",null,null,null,null,"Inmobiliaria Paseo de la Estación S. A.",null,null,null,null,"ENAP Refinerías S.A. (ERSA)",null,null,null,null,null,null,null,null,null,null,null,null,null,null,null,null,null,null,null,null,null,"VALPARAÍSO",null,null,null,"EDUCACIÓN"]
["ECONOMÍA FOMENTO Y TURISMO","DESARROLLO DE TECNOLOGÍA Y SISTEMAS LIMITADA","INSTITUTO FORESTAL",null,null,"SUBSECRETARÍA DE DEFENSA","SERVICIO NACIONAL DE PESCA Y ACUICULTURA","SUBSECRETARÍA DE EDUCACIÓN",null,"SERVICIO NACIONAL DE ADUANAS","GOBIERNO REGIONAL DE COQUIMBO","SERVICIO DE REGISTRO CIVIL E IDENTIFICACIÓN",null,null,"DIRECCIÓN DE VIALIDAD","SUBSECRETARÍA DE SERVICIOS SOCIALES",null,null,"SERVICIO DE SALUD ACONCAGUA",null,null,null,"SUBSECRETARÍA DEL TRABAJO",null,"SERVIU REGIÓN V",null,null,null,null,"BancoEstado Centro de Servicios S.A.",null,null,"Clínica Río Blanco S.A.",null,null,null,null,"Inmobiliria Nueva Vía S.A.",null,null,null,null,"Enap Sipetrol (UK) Limited",null,null,null,null,null,null,null,null,null,null,null,null,null,null,null,null,null,null,null,null,null,"O'HIGGINS",null,null,null,"ENERGÍA"]
["EDUCACIÓN","CONCESIONARIA DE SERVICIOS SANITARIOS","INSTITUTO INVESTIGACIONES AGROPECUARIAS",null,null,"SUBSECRETARÍA PARA LAS FUERZAS ARMADAS","SERVICIO NACIONAL DE TURISMO","SUPERINTENDENCIA DE EDUCACIÓN",null,"SUBSECRETARÍA DE HACIENDA","GOBIERNO REGIONAL DE LA ARAUCANÍA","SERVICIO MÉDICO LEGAL",null,null,"DIRECCIÓN GENERAL DE AGUAS","SUBSECRETARÍA DE LA NIÑEZ",null,null,"SERVICIO DE SALUD ANTOFAGASTA",null,null,null,"SUPERINTENDENCIA DE PENSIONES ",null,"SERVIU REGIÓN VI",null,null,null,null,"Sociedad de Servicios Transaccionales Caja Vecina S.A.",null,null,"Codelco do Brasil Mineracao Limitada",null,null,null,null,"Metro Regional de Valparaíso S.A.",null,null,null,null,"Enap Sipetrol Argentina S.A.",null,null,null,null,null,null,null,null,null,null,null,null,null,null,null,null,null,null,null,null,null,"MAULE",null,null,null,"HACIENDA"]
["ENERGÍA","EMPRESA DE ABASTECIMIENTO DE ZONAS AISLADAS","OFICINA DE ESTUDIOS Y POLÍTICAS AGRARIAS",null,null,null,"SERVICIO NACIONAL DEL CONSUMIDOR","SUBSECRETARIA DE EDUCACIÓN PARVULARIA",null,"SUPERINTENDENCIA DE BANCOS E INSTITUCIONES FINANCIERAS","GOBIERNO REGIONAL DE LIBERTADOR BERNARDO O´HIGGINS","SERVICIO NACIONAL DE MENORES",null,null,"DIRECCIÓN GENERAL DE OBRAS PÚBLICAS",null,null,null,"SERVICIO DE SALUD ARAUCANÍA NORTE",null,null,null,"SUPERINTENDENCIA DE SEGURIDAD SOCIAL ",null,"SERVIU REGIÓN VII",null,null,null,null,"Capital de Riesgo S.A.",null,null,"Codelco Group (USA) INC.",null,null,null,null,"Servicio de Trenes Regionales Terra S.A",null,null,null,null,"Enap Sipetrol S.A.",null,null,null,null,null,null,null,null,null,null,null,null,null,null,null,null,null,null,null,null,null,"ÑUBLE",null,null,null,"INTERIOR Y SEGURIDAD PÚBLICA"]
["HACIENDA","CORREOS DE CHILE","SERVICIO AGRÍCOLA Y GANADERO",null,null,null,"SUBSECRETARÍA DE ECONOMÍA Y EMPRESAS DE MENOR TAMAÑO","DIRECCIÓN DE EDUCACIÓN PÚBLICA",null,"SUPERINTENDENCIA DE CASINOS DE JUEGO","GOBIERNO REGIONAL DE LOS LAGOS","SUBSECRETARÍA DE JUSTICIA",null,null,"FISCALÍA MINISTERIO DE OBRAS PUBLICAS",null,null,null,"SERVICIO DE SALUD ARAUCANÍA SUR",null,null,null,"CHILE VALORA",null,"SERVIU REGIÓN VIII",null,null,null,null,"Sociedad de Promoción de Productos Bancarios S.A.",null,null,"Codelco International Limited",null,null,null,null,"Trenes Metropolitanos S.A. ™",null,null,null,null,"Energía Andina S.A.",null,null,null,null,null,null,null,null,null,null,null,null,null,null,null,null,null,null,null,null,null,"BÍO-BÍO",null,null,null,"JUSTICIA"]
["INTERIOR Y SEGURIDAD PÚBLICA","FERROCARRILES DEL ESTADO","SUBSECRETARÍA DE AGRICULTURA",null,null,null,"SUBSECRETARÍA DE PESCA Y ACUICULTURA",null,null,"UNIDAD ADMINISTRADORA DE LOS TRIBUNALES TRIBUTARIOS Y ADUANEROS","GOBIERNO REGIONAL DE LOS RÍOS","SUBSECRETARÍA DE DERECHOS HUMANOS",null,null,"INSTITUTO NACIONAL DE HIDRÁULICA",null,null,null,"SERVICIO DE SALUD ARAUCO",null,null,null,null,null,"SERVIU REGIÓN IX",null,null,null,null,"Operadora de Tarjetas de Créditos Nexus S.A.",null,null,"Codelco Küpferhandel GmbH",null,null,null,null,null,null,null,null,null,"Energía Concón S.A. (Enercon)",null,null,null,null,null,null,null,null,null,null,null,null,null,null,null,null,null,null,null,null,null,"ARAUCANÍA",null,null,null,"MEDIO AMBIENTE"]
["JUSTICIA","SERVICIOS SANITARIOS LAGO PEÑUELAS",null,null,null,null,"SUBSECRETARÍA DE TURISMO",null,null,"UNIDAD DE ANÁLISIS FINANCIERO","GOBIERNO REGIONAL DE MAGALLANES Y ANTÁRTICA CHILENA",null,null,null,"SUBSECRETARÍA DE OBRAS PÚBLICAS",null,null,null,"SERVICIO DE SALUD ARICA",null,null,null,null,null,"SERVIU REGIÓN X",null,null,null,null,"Combanc S.A.",null,null,"Codelco Metals INC.",null,null,null,null,null,null,null,null,null,"Éteres y Alcoholes S.A.",null,null,null,null,null,null,null,null,null,null,null,null,null,null,null,null,null,null,null,null,null,"LOS RÍOS",null,null,null,"MINERÍA"]
["MEDIO AMBIENTE","METRO S.A",null,null,null,null,"SUPERINTENDENCIA DE INSOLVENCIA Y REEMPRENDIMIENTO",null,null,"COMISIÓN PARA EL MERCADO FINANCIERO","GOBIERNO REGIONAL DE MAULE",null,null,null,"SUPERINTENDENCIA DE SERVICIOS SANITARIOS",null,null,null,"SERVICIO DE SALUD ATACAMA",null,null,null,null,null,"SERVIU REGIÓN XI",null,null,null,null,"Administrador Financiero Transantiago S.A.",null,null,"Codelco Services Limited",null,null,null,null,null,null,null,null,null,"Forenergy S.A.",null,null,null,null,null,null,null,null,null,null,null,null,null,null,null,null,null,null,null,null,null,"LOS LAGOS",null,null,null,"OBRAS PÚBLICAS"]
["MINERÍA","EMPRESA NACIONAL DE AERONÁUTICA - ENAER",null,null,null,null,null,null,null,null,"GOBIERNO REGIONAL DE ÑUBLE",null,null,null,"DIRECCIÓN GENERAL DE CONCESIONES DE OBRAS PÚBLICAS",null,null,null,"SERVICIO DE SALUD AYSÉN",null,null,null,null,null,"SERVIU REGIÓN XII",null,null,null,null,null,null,null,"Codelco Technologies Limited",null,null,null,null,null,null,null,null,null,"Gas de Chile S.A.",null,null,null,null,null,null,null,null,null,null,null,null,null,null,null,null,null,null,null,null,null,"AYSÉN",null,null,null,{"$f":"TRIM($A7)","v":"DESARROLLO SOCIAL"}]
["OBRAS PÚBLICAS","EMPRESA NACIONAL DE MINERÍA",null,null,null,null,null,null,null,null,"GOBIERNO REGIONAL DE TARAPACÁ",null,null,null,null,null,null,null,"SERVICIO DE SALUD BERNARDO OHIGGINS",null,null,null,null,null,"SERVIU REGIÓN XIV",null,null,null,null,null,null,null,"Codelco USA INC.",null,null,null,null,null,null,null,null,null,"Gasoducto del Pacífico (Argentina) S.A.",null,null,null,null,null,null,null,null,null,null,null,null,null,null,null,null,null,null,null,null,null,"MAGALLANES",null,null,null,{"$f":"TRIM($A17)","v":"PRESIDENCIA DE LA REPÚBLICA"}]
["PRESIDENCIA DE LA REPÚBLICA","EMPRESA NACIONAL DEL CARBÓN S.A",null,null,null,null,null,null,null,null,"GOBIERNO REGIONAL DE VALPARAÍSO",null,null,null,null,null,null,null,"SERVICIO DE SALUD BÍO BÍO",null,null,null,null,null,"SERVIU REGIÓN XV",null,null,null,null,null,null,null,"CoMoTech S.A.",null,null,null,null,null,null,null,null,null,"Gasoducto del Pacífico (Cayman) Ltd.",null,null,null,null,null,null,null,null,null,null,null,null,null,null,null,null,null,null,null,null,null,"METROPOLITANA",null,null,null,"RELACIONES EXTERIORES"]
["RELACIONES EXTERIORES","EMPRESA NACIONAL DEL PETRÓLEO",null,null,null,null,null,null,null,null,"GOBIERNO REGIONAL METROPOLITANO DE SANTIAGO",null,null,null,null,null,null,null,"SERVICIO DE SALUD CHILOÉ",null,null,null,null,null,"SUBSECRETARÍA DE VIVIENDA Y URBANISMO",null,null,null,null,null,null,null,"Compañía Contractual Minera los Andes CCMLA",null,null,null,null,null,null,null,null,null,"Gasoducto del Pacífico (Chile) S.A.",null,null,null,null,null,null,null,null,null,null,null,null,null,null,null,null,null,null,null,null,null,"NIVEL CENTRAL",null,null,null,"SALUD"]
["SALUD","EMPRESA PERIODÍSTICA LA NACIÓN S.A.",null,null,null,null,null,null,null,null,"OFICINA NACIONAL DE EMERGENCIA",null,null,null,null,null,null,null,"SERVICIO DE SALUD CONCEPCIÓN",null,null,null,null,null,null,null,null,null,null,null,null,null,"Compañía Minera Picacho SCM",null,null,null,null,null,null,null,null,null,"Geotérmica del Norte S.A.",null,null,null,null,null,null,null,null,null,null,null,null,null,null,null,null,null,null,null,null,null,null,null,null,null,"SECRETARÍA GENERAL DE GOBIERNO"]
["SECRETARÍA GENERAL DE GOBIERNO","PORTUARIA ANTOFAGASTA",null,null,null,null,null,null,null,null,"SERVICIO ELECTORAL",null,null,null,null,null,null,null,"SERVICIO DE SALUD COQUIMBO",null,null,null,null,null,null,null,null,null,null,null,null,null,"Complejo Portuario Mejillones S.A.",null,null,null,null,null,null,null,null,null,"GNL Chile S.A.",null,null,null,null,null,null,null,null,null,null,null,null,null,null,null,null,null,null,null,null,null,null,null,null,null,"SECRETARÍA GENERAL DE LA PRESIDENCIA DE LA REPÚBLICA"]
["SECRETARÍA GENERAL DE LA PRESIDENCIA DE LA REPÚBLICA","PORTUARIA ARICA",null,null,null,null,null,null,null,null,"SERVICIO NACIONAL PARA LA PREVENCIÓN Y REHABILITACIÓN DEL CONSUMO DE DROGAS Y ALCOHOL",null,null,null,null,null,null,null,"SERVICIO DE SALUD IQUIQUE",null,null,null,null,null,null,null,null,null,null,null,null,null,"Cooper Partners Investment CL",null,null,null,null,null,null,null,null,null,"GNL Quintero S.A.",null,null,null,null,null,null,null,null,null,null,null,null,null,null,null,null,null,null,null,null,null,null,null,null,null,"MUJER Y LA EQUIDAD DE GÉNERO"]
["MUJER Y LA EQUIDAD DE GÉNERO","PORTUARIA AUSTRAL",null,null,null,null,null,null,null,null,"SUBSECRETARÍA DE DESARROLLO REGIONAL Y ADMINISTRATIVO",null,null,null,null,null,null,null,"SERVICIO DE SALUD MAGALLANES",null,null,null,null,null,null,null,null,null,null,null,null,null,"Deutsche Giessdraht GmbH (Alemania)",null,null,null,null,null,null,null,null,null,"Golfo de Guayaquil Petroenap Compañía de Economía Mixta (Ecuador)",null,null,null,null,null,null,null,null,null,null,null,null,null,null,null,null,null,null,null,null,null,null,null,null,null,"TRABAJO Y PREVISIÓN SOCIAL"]
["TRABAJO Y PREVISIÓN SOCIAL","PORTUARIA CHACABUCO",null,null,null,null,null,null,null,null,"SUBSECRETARÍA DEL INTERIOR",null,null,null,null,null,null,null,"SERVICIO DE SALUD MAULE",null,null,null,null,null,null,null,null,null,null,null,null,null,"Ecometales Limited",null,null,null,null,null,null,null,null,null,"Innergy Holding S.A.",null,null,null,null,null,null,null,null,null,null,null,null,null,null,null,null,null,null,null,null,null,null,null,null,null,"TRANSPORTES Y TELECOMUNICACIONES"]
["TRANSPORTES Y TELECOMUNICACIONES","PORTUARIA COQUIMBO",null,null,null,null,null,null,null,null,"SUBSECRETARÍA DE PREVENCION DEL DELITO",null,null,null,null,null,null,null,"SERVICIO DE SALUD METROPOLITANO CENTRAL",null,null,null,null,null,null,null,null,null,null,null,null,null,"EcoSea S.A",null,null,null,null,null,null,null,null,null,"Inversiones Electrogas S.A.",null,null,null,null,null,null,null,null,null,null,null,null,null,null,null,null,null,null,null,null,null,null,null,null,null,"VIVIENDA Y URBANISMO"]
["VIVIENDA Y URBANISMO","PORTUARIA IQUIQUE",null,null,null,null,null,null,null,null,"POLICIA DE INVESTIGACIONES",null,null,null,null,null,null,null,"SERVICIO DE SALUD METROPOLITANO NORTE",null,null,null,null,null,null,null,null,null,null,null,null,null,"Edelnor S.A.",null,null,null,null,null,null,null,null,null,"Manu Peru Holding S.A.",null,null,null,null,null,null,null,null,null,null,null,null,null,null,null,null,null,null,null,null,null,null,null,null,null,"EMPRESAS ESTADO"]
["EMPRESAS ESTADO","PORTUARIA PUERTO MONTT",null,null,null,null,null,null,null,null,"CARABINEROS DE CHILE",null,null,null,null,null,null,null,"SERVICIO DE SALUD METROPOLITANO OCCIDENTE",null,null,null,null,null,null,null,null,null,null,null,null,null,"Ejecutora Proyecto Hospital del Cobre Calama S.A.",null,null,null,null,null,null,null,null,null,"Norgas S.A.",null,null,null,null,null,null,null,null,null,null,null,null,null,null,null,null,null,null,null,null,null,null,null,null,null,{"$f":"TRIM(#REF!)","v":{"$error":"#REF!"}}]
[null,"PORTUARIA SAN ANTONIO",null,null,null,null,null,null,null,null,"SERVICIO DE GOBIERNO INTERIOR",null,null,null,null,null,null,null,"SERVICIO DE SALUD METROPOLITANO ORIENTE",null,null,null,null,null,null,null,null,null,null,null,null,null,"Elaboradora de Cobre Chilena Limitada",null,null,null,null,null,null,null,null,null,"Oleoducto Trasandino (Argentina) S.A.",null,null,null,null,null,null,null,null,null,null,null,null,null,null,null,null,null,null,null,null,null,null,null,null,null,{"$f":"TRIM($A27)","v":""}]
[null,"PORTUARIA TALCAHUANO-SAN VICENTE",null,null,null,null,null,null,null,null,null,null,null,null,null,null,null,null,"SERVICIO DE SALUD METROPOLITANO SUR",null,null,null,null,null,null,null,null,null,null,null,null,null,"Energía Minera S.A.",null,null,null,null,null,null,null,null,null,"Oleoducto Trasandino (Chile) S.A."]
[null,"PORTUARIA VALPARAÍSO",null,null,null,null,null,null,null,null,null,null,null,null,null,null,null,null,"SERVICIO DE SALUD METROPOLITANO SUR ORIENTE",null,null,null,null,null,null,null,null,null,null,null,null,null,"Exploraciones Mineras Andinas S.A.",null,null,null,null,null,null,null,null,null,"Petro Servicio Corp. S.A. (Argentina)"]
[null,"ESSAL S.A.",null,null,null,null,null,null,null,null,null,null,null,null,null,null,null,null,"SERVICIO DE SALUD ÑUBLE",null,null,null,null,null,null,null,null,null,null,null,null,null,"GNL Mejillones S.A.",null,null,null,null,null,null,null,null,null,"Petropower Energia Ltda."]
[null,"ESSBÍO S.A.",null,null,null,null,null,null,null,null,null,null,null,null,null,null,null,null,"SERVICIO DE SALUD OSORNO",null,null,null,null,null,null,null,null,null,null,null,null,null,"Inca de Oro S.A.",null,null,null,null,null,null,null,null,null,"Petrosul S.A."]
[null,"ESVAL S.A.",null,null,null,null,null,null,null,null,null,null,null,null,null,null,null,null,"SERVICIO DE SALUD RELONCAVÍ",null,null,null,null,null,null,null,null,null,null,null,null,null,"Innovaciones en Cobre S.A.",null,null,null,null,null,null,null,null,null,"Primax Ecuador S.A."]
[null,"FÁBRICA Y MAESTRANZAS DEL EJÉRCITO",null,null,null,null,null,null,null,null,null,null,null,null,null,null,null,null,"SERVICIO DE SALUD TALCAHUANO",null,null,null,null,null,null,null,null,null,null,null,null,null,"Instituto de Innovación en Minería y Metalurgia S.A.",null,null,null,null,null,null,null,null,null,"Primax Holding S.A. (Ecuador)"]
[null,"POLLA CHILENA DE BENEFICENCIA",null,null,null,null,null,null,null,null,null,null,null,null,null,null,null,null,"SERVICIO DE SALUD VALDIVIA",null,null,null,null,null,null,null,null,null,null,null,null,null,"Inversiones Mejillones 1 S.A.",null,null,null,null,null,null,null,null,null,"Primax S.A. (Perú)"]
[null,"PUERTO MADERO IMPRESORES",null,null,null,null,null,null,null,null,null,null,null,null,null,null,null,null,"SERVICIO DE SALUD VALPARAÍSO Y SAN ANTONIO",null,null,null,null,null,null,null,null,null,null,null,null,null,"Inversiones Mejillones 2 S.A.",null,null,null,null,null,null,null,null,null,"Productora de Diesel S.A. (Prodisa)"]
[null,"SOCIEDAD AGRÍCOLA SACOR",null,null,null,null,null,null,null,null,null,null,null,null,null,null,null,null,"SERVICIO DE SALUD VIÑA DEL MAR Y QUILLOTA",null,null,null,null,null,null,null,null,null,null,null,null,null,"Inversiones Tocopilla 2A S.A.",null,null,null,null,null,null,null,null,null,"Sipetrol International (Uruguay) S.A."]
[null,"SOCIEDAD AGRÍCOLA Y SERVICIOS ISLA DE PASCUA LTDA",null,null,null,null,null,null,null,null,null,null,null,null,null,null,null,null,"SUBSECRETARÍA DE REDES ASISTENCIALES",null,null,null,null,null,null,null,null,null,null,null,null,null,"Inversiones Tocopilla 2B Ltda.",null,null,null,null,null,null,null,null,null,"Sociedad Internacional Petrolera Enap Ecuador S.A."]
[null,"TELEVISIÓN NACIONAL DE CHILE",null,null,null,null,null,null,null,null,null,null,null,null,null,null,null,null,"SUBSECRETARÍA DE SALUD",null,null,null,null,null,null,null,null,null,null,null,null,null,"Isapre Chuquicamata Ltda.",null,null,null,null,null,null,null,null,null,"Sociedad Nacional de Oleoductos S.A."]
[null,"ZONA FRANCA DE IQUIQUE S.A",null,null,null,null,null,null,null,null,null,null,null,null,null,null,null,null,"SUPERINTENDENCIA DE SALUD",null,null,null,null,null,null,null,null,null,null,null,null,null,"Isapre Río blanco Ltda.",null,null,null,null,null,null,null,null,null,"Sonamar S.A."]
[null,null,null,null,null,null,null,null,null,null,null,null,null,null,null,null,null,null,null,null,null,null,null,null,null,null,null,null,null,null,null,null,"Isapre San Lorenzo Ltda.",null,null,null,null,null,null,null,null,null,"Terminales Marítimas Patagónicas S.A. (Argentina)"]
[null,null,null,null,null,null,null,null,null,null,null,null,null,null,null,null,null,null,null,null,null,null,null,null,null,null,null,null,null,null,null,null,"Kairos Mining S.A."]
[null,null,{"$f":"COUNTA(C2:C41)","v":11},{"$f":"COUNTA(D2:D41)","v":1},3,8,13,10,4,13,26,11,3,3,14,8,1,5,38,2,1,2,10,3,17,2,null,null,null,null,null,null,"Minera Gaby S.A."]
[null,null,"AGRICULTURA","BIENES NACIONALES ","CULTURAS LAS ARTES Y EL PATRIMONIO CULTURAL ","DEFENSA NACIONAL","ECONOMÍA, FOMENTO Y TURISMO ","EDUCACIÓN","ENERGÍA","HACIENDA","INTERIOR Y SEGURIDAD PUBLICA","JUSTICIA","MEDIO AMBIENTE ","MINERÍA","OBRAS PÚBLICAS ","DESARROLLO SOCIAL","PRESIDENCIA DE LA REPUBLICA","RELACIONES EXTERIORES ","SALUD","SECRETARIA GENERAL DE GOBIERNO ","SECRETARIA GENERAL DE LA PRESIDENCIA DE LA REPUBLICA ","SERVICIO NACIONAL DE LA MUJER ","TRABAJO Y PREVISIÓN SOCIAL","TRANSPORTES Y TELECOMUNICACIONES ","VIVIENDA Y URBANISMO","DEPORTE",null,null,null,null,null,null,"Minning Information Communication and Monitoring S.A. (MICOMO S.A.)"]
[null,null,null,null,null,null,null,null,null,null,null,null,null,null,null,null,null,null,null,null,null,null,null,null,null,null,null,null,null,null,null,null,"MIRS S.A"]
[null,null,null,null,null,null,null,null,null,null,null,null,null,null,null,null,null,null,null,null,null,null,null,null,null,null,null,null,null,null,null,null,"Prestadora de Servicios San Lorenzo Ltda."]
["ACTUALIZACIÓN","2018-10-19",null,null,null,null,null,null,null,null,null,null,null,null,null,null,null,null,null,null,null,null,null,null,null,null,null,null,null,null,null,null,"Santiago de Río Grande S.A."]
[null,null,null,null,null,null,null,null,null,null,null,null,null,null,null,null,null,null,null,null,null,null,null,null,null,null,null,null,null,null,null,null,"Sociedad contractual minera El Abra"]
[null,null,null,null,null,null,null,null,null,null,null,null,null,null,null,null,null,null,null,null,null,null,null,null,null,null,null,null,null,null,null,null,"Sociedad contractual minera Purén"]
[null,null,null,null,null,null,null,null,null,null,null,null,null,null,null,null,null,null,null,null,null,null,null,null,null,null,null,null,null,null,null,null,"Sociedad contractual minera Sierra Mariposa"]
[null,null,null,null,null,null,null,null,null,null,null,null,null,null,null,null,null,null,null,null,null,null,null,null,null,null,null,null,null,null,null,null,"Sociedad de Inversiones Copperfield Limitada"]
[null,null,null,null,null,null,null,null,null,null,null,null,null,null,null,null,null,null,null,null,null,null,null,null,null,null,null,null,null,null,null,null,"Termoeléctrica Farellones S.A."]
[]
[]
[]
[]
["SUBDIVISIONES",null,{"$f":"TRIM(C$1)","v":"AGRICULTURA"},{"$f":"TRIM(D$1)","v":"BIENES NACIONALES"},"CULTURAS LAS ARTES Y EL PATRIMONIO CULTURAL","DEFENSA NACIONAL","ECONOMÍA FOMENTO Y TURISMO","EDUCACIÓN","ENERGÍA","HACIENDA","INTERIOR Y SEGURIDAD PÚBLICA","JUSTICIA","MEDIO AMBIENTE","MINERÍA","OBRAS PÚBLICAS","DESARROLLO SOCIAL","PRESIDENCIA DE LA REPÚBLICA","RELACIONES EXTERIORES","SALUD","SECRETARÍA GENERAL DE GOBIERNO","SECRETARÍA GENERAL DE LA PRESIDENCIA DE LA REPÚBLICA","MUJER Y LA EQUIDAD DE GÉNERO","TRABAJO Y PREVISIÓN SOCIAL","TRANSPORTES Y TELECOMUNICACIONES","VIVIENDA Y URBANISMO","DEPORTE",{"$f":"TRIM(AA$1)","v":"DIVISION"},"AGUAS ANDINAS S.A.","ASTILLEROS Y MAESTRANZAS DE LA ARMADA","BANCO ESTADO DE CHILE","CASA DE MONEDA","COMERCIALIZADORA DE TRIGO","CODELCO","DESARROLLO DE TECNOLOGÍA Y SISTEMAS LIMITADA","CONCESIONARIA DE SERVICIOS SANITARIOS","ABASTECIMIENTO DE ZONAS AISLADAS","CORREOS DE CHILE","FERROCARRILES DEL ESTADO","SERVICIOS SANITARIOS LAGO PEÑUELAS","METRO S.A","EMPRESA NACIONAL DE MINERÍA","EMPRESA NACIONAL DEL CARBÓN S.A","EMPRESA NACIONAL DEL PETRÓLEO","LA NACIÓN S.A.","PORTUARIA ANTOFAGASTA","PORTUARIA ARICA","PORTUARIA AUSTRAL","PORTUARIA CHACABUCO","PORTUARIA COQUIMBO","PORTUARIA IQUIQUE","PORTUARIA PUERTO MONTT","PORTUARIA SAN ANTONIO","PORTUARIA TALCAHUANO-SAN VICENTE","PORTUARIA VALPARAÍSO","ESSAL S.A.","ESSBÍO S.A.","ESVAL S.A.","FÁBRICA Y MAESTRANZAS DEL EJÉRCITO","POLLA CHILENA DE BENEFICENCIA","PUERTO MADERO IMPRESORES","SOCIEDAD AGRÍCOLA SACOR","SOCIEDAD AGRÍCOLA Y SERVICIOS ISLA DE PASCUA LTDA","TELEVISIÓN NACIONAL DE CHILE","ZONA FRANCA DE IQUIQUE S.A","REGION","","","","","","","",""]
[]
["CAJA PREVISIÓN DEFENSA NACIONAL","SERVICIO NACIONAL DE TURISMO","SERVICIO DE GOBIERNO INTERIOR","SERVICIO DE SALUD ACONCAGUA","SERVICIO DE SALUD ANTOFAGASTA","SERVICIO DE SALUD ARAUCANÍA NORTE","SERVICIO DE SALUD ARAUCANÍA SUR","SERVICIO DE SALUD ARAUCO","SERVICIO DE SALUD ARICA","SERVICIO DE SALUD ATACAMA","SERVICIO DE SALUD AYSÉN","SERVICIO DE SALUD BERNARDO OHIGGINS","SERVICIO DE SALUD BÍO BÍO","SERVICIO DE SALUD CHILOÉ","SERVICIO DE SALUD CONCEPCIÓN","SERVICIO DE SALUD COQUIMBO","SERVICIO DE SALUD IQUIQUE","SERVICIO DE SALUD MAGALLANES","SERVICIO DE SALUD MAULE","SERVICIO DE SALUD METROPOLITANO CENTRAL","SERVICIO DE SALUD METROPOLITANO NORTE","SERVICIO DE SALUD METROPOLITANO OCCIDENTE","SERVICIO DE SALUD METROPOLITANO ORIENTE","SERVICIO DE SALUD METROPOLITANO SUR","SERVICIO DE SALUD METROPOLITANO SUR ORIENTE",null,"SERVICIO DE SALUD ÑUBLE","SERVICIO DE SALUD OSORNO","SERVICIO DE SALUD RELONCAVÍ","SERVICIO DE SALUD TALCAHUANO","SERVICIO DE SALUD VALDIVIA","SERVICIO DE SALUD VALPARAÍSO Y SAN ANTONIO","SERVICIO DE SALUD VIÑA DEL MAR Y QUILLOTA","SUBSECRETARÍA DE SALUD","SUBSECRETARÍA DE AGRICULTURA","SUBSECRETARÍA PARA LAS FUERZAS ARMADAS","SUBSECRETARÍA DE ECONOMÍA Y EMPRESAS DE MENOR TAMAÑO ","SUBSECRETARÍA DE EDUCACIÓN","SUBSECRETARÍA DE ENERGÍA","SUBSECRETARÍA DE HACIENDA","SUBSECRETARÍA DE JUSTICIA","SUBSECRETARÍA DE MINERÍA","SUBSECRETARÍA DE OBRAS PÚBLICAS","SUBSECRETARÍA DE SERVICIOS SOCIALES","SUBSECRETARÍA  GENERAL DE GOBIERNO","SUBSECRETARÍA DEL INTERIOR","SUBSECRETARÍA DEL TRABAJO ","SUBSECRETARÍA DE TRANSPORTES ","SUBSECRETARÍA DE VIVIENDA Y URBANISMO ","SUBSECRETARÍA DE BIENES NACIONALES","SUBSECRETARÍA DEL MEDIO AMBIENTE","SUBSECRETARÍA DE RELACIONES EXTERIORES","SUBSECRETARÍA GENERAL DE LA PRESIDENCIA DE LA REPUBLICA","SERVICIO DE TESORERÍAS","SUBSECRETARÍA DE DEFENSA","CORPORACIÓN DE FOMENTO DE LA PRODUCCIÓN ","SUBSECRETARÍA DE TELECOMUNICACIONES","SUBSECRETARÍA DE EVALUCIÓN SOCIAL","SUBSECRETARÍA DE DEPORTES","DIRECCIÓN DE PREVISIÓN DE CARABINEROS DE CHILE","CARABINEROS DE CHILE","DIRECCIÓN DE EDUCACIÓN PÚBLICA","DIRECCIÓN GENERAL DE OBRAS PÚBLICAS","DIRECCIÓN GENERAL DE CONCESIONES DE OBRAS PÚBLICAS"]
["CENTRO DE REHABILITACIÓN LA FLORIDA","DIRECCIÓN NACIONAL","GOBERNACIÓN PROVINCIAL ANTÁRTICA CHILENA","DIRECCIÓN DEL SERVICIO","DIRECCIÓN DEL SERVICIO","DIRECCIÓN DEL SERVICIO","DIRECCIÓN DEL SERVICIO","DIRECCIÓN DEL SERVICIO","DIRECCIÓN DEL SERVICIO","DIRECCIÓN DEL SERVICIO","DIRECCIÓN DEL SERVICIO","DIRECCIÓN DEL SERVICIO","DIRECCIÓN DEL SERVICIO","DIRECCIÓN DEL SERVICIO","DIRECCIÓN DEL SERVICIO","DIRECCIÓN DEL SERVICIO","DIRECCIÓN DEL SERVICIO","DIRECCIÓN DEL SERVICIO","DIRECCIÓN DEL SERVICIO","DIRECCIÓN DEL SERVICIO","DIRECCIÓN DEL SERVICIO","DIRECCIÓN DEL SERVICIO","DIRECCIÓN DEL SERVICIO","DIRECCIÓN DEL SERVICIO","DIRECCIÓN DEL SERVICIO",null,"DIRECCIÓN DEL SERVICIO","DIRECCIÓN DEL SERVICIO","DIRECCIÓN DEL SERVICIO","DIRECCIÓN DEL SERVICIO","DIRECCIÓN DEL SERVICIO","DIRECCIÓN DEL SERVICIO","DIRECCIÓN DEL SERVICIO","SUBSECRETARÍA DE SALUD","SUBSECRETARÍA DE AGRICULTURA","SUBSECRETARÍA PARA LAS FUERZAS ARMADAS","SUBSECRETARÍA DE ECONOMÍA Y EMPRESAS DE MENOR TAMAÑO ","SUBSECRETARÍA DE EDUCACIÓN","SUBSECRETARÍA DE ENERGÍA","SUBSECRETARÍA DE HACIENDA","SUBSECRETARÍA DE JUSTICIA","SUBSECRETARÍA DE MINERÍA","SUBSECRETARÍA DE OBRAS PÚBLICAS","SUBSECRETARÍA DE SERVICIOS SOCIALES","SUBSECRETARÍA  GENERAL DE GOBIERNO","SUBSECRETARÍA DEL INTERIOR","SUBSECRETARÍA DEL TRABAJO ","SUBSECRETARÍA DE TRANSPORTES ","SUBSECRETARÍA DE VIVIENDA Y URBANISMO ","SUBSECRETARÍA DE BIENES NACIONALES","SUBSECRETARÍA DEL MEDIO AMBIENTE","SUBSECRETARÍA DE RELACIONES EXTERIORES","SUBSECRETARÍA GENERAL DE LA PRESIDENCIA DE LA REPUBLICA","TESORERÍA GENERAL DE LA REPÚBLICA","DIRECCIÓN ADMINISTRATIVA","COMITÉ INNOVA CHILE ","SUBSECRETARÍA DE TELECOMUNICACIONES","SUBSECRETARÍA DE EVALUACIÓN SOCIAL","SUBSECRETARÍA DE DEPORTES","DIRECCIÓN DEL SERVICIO","HOSPITAL DE CARABINEROS ","SERVICIO LOCAL DE EDUCACIÓN PÚBLICA BARRANCAS"]
["CENTRO DE SALUD SANTIAGO","DIRECCIÓN REGIONAL DE ANTOFAGASTA","GOBERNACIÓN PROVINCIAL ANTOFAGASTA","CESFAM CORDILLERA ANDINA","HOSPITAL 21 DE MAYO - TALTAL","HOSPITAL DE COLLIPULLI","CONSULTORIO MIRAFLORES","HOSPITAL DE CONTULMO","HOSPITAL JUAN NOÉ CREVANNI","HOSPITAL  PROVINCIAL DEL HUASCO MONSEÑOR FDO. ARIZTÍA RUIZ - VALLENAR","CONSULTORIO DR. ALEJANDRO GUTIÉRREZ","HOSPITAL DE COÍNCO","COMPLEJO ASISTENCIAL DR. VÍCTOR RÍOS RUIZ - LOS ÁNGELES","HOSPITAL DE ACHAO","CENTRO DE SANGRE CONCEPCIÓN","HOSPITAL DE SALAMANCA","HOSPITAL ALTO HOSPICIO","HOSPITAL DR. AUGUSTO ESSMANN BURGOS - NATALES","HOSP. PDTE. CARLOS IBÁÑEZ DEL CAMPO - LINARES","DIRECCION DE ATENCION PRIMARIA","COMPLEJO HOSPITALARIO SAN JOSÉ (H. SAN JOSÉ - SANTIAGO)","CRS SALVADOR ALLENDE","HOSPITAL DEL SALVADOR","HOSPITAL  DE ENFERMEDADES INFECCIOSAS DR. LUCIO CÓRDOVA","COMPLEJO HOSPITALARIO DR. SÓTERO DEL RÍO",null,"CESFAM VIOLETA PARRA","HOSPITAL BASE DE OSORNO","CESFAM DE RIO NEGRO HORNOPIRÉN","HOSPITAL DE TOMÉ","CESFAM EXTERNO VALDIVIA","HOSPITAL CARLOS VAN BUREN - VALPARAÍSO","HOSPITAL ADRIANA COUSIÑO","SEREMI DE SALUD REGIÓN I","SEREMI DE AGRICULTURA REGIÓN I","EJERCITO DE CHILE","SEREMI DE ECONOMÍA REGIÓN I","SEREMI DE EDUCACIÓN REGIÓN I","SEREMI DE ENERGÍA REGIÓN I","SEREMI DE HACIENDA REGIÓN I","SEREMI DE JUSTICIA REGIÓN I","SEREMI DE MINERÍA REGIÓN I","SEREMI DE OBRAS PÚBLICAS REGIÓN I","SEREMI DE SERVICIOS SOCIALES  REGIÓN I",null,"SECRETARÍA Y ADMINISTRACIÓN GENERAL","SEREMI DEL TRABAJO Y PREVISIÓN SOCIAL  REGIÓN I","SEREMI DE TRANSPORTES Y TELECOMUNICACIONES  REGIÓN I","SEREMI DE VIVIENDA Y URBANISMO REGIÓN I","SEREMI DE BIENES NACIONALES REGIÓN I","SEREMI DE MEDIO AMBIENTE REGIÓN I",null,null,"TESORO PÚBLICO","SUBSECRETARÍA DE DEFENSA",null,null,null,"SEREMI DE DEPORTES REGIÓN I","HOSPITAL DIPRECA",null,"SERVICIO LOCAL DE EDUCACIÓN PÚBLICA PUERTO CORDILLERA"]
["CENTRO DE SALUD VALPARAÍSO","DIRECCIÓN REGIONAL DE ARICA - PARINACOTA ","GOBERNACIÓN PROVINCIAL ARAUCO","CONSULTORIO GENERAL URBANO LLAY LLAY","HOSPITAL DE MEJILLONES","HOSPITAL DE LONQUIMAY","HOSPITAL DE CARAHUE","HOSPITAL DE LEBU",null,"HOSPITAL DR. FLORENCIO VARGAS - DIEGO DE ALMAGRO","CONSULTORIO VÍCTOR DOMINGO SILVA","HOSPITAL DE LITUECHE","HOSPITAL DE LAJA","HOSPITAL DE ANCUD","CESFAM VÍCTOR M. FERNÁNDEZ","HOSPITAL DR. ANTONIO TIRADO LANAS - OVALLE","HOSPITAL ERNESTO TORRES GALDAMES","HOSPITAL DR. LAUTARO NAVARRO AVARIA - PUNTA ARENAS","HOSPITAL DE CONSTITUCIÓN","HOSPITAL CLÍNICO SAN BORJA-ARRIARÁN","HOSPITAL DE TIL - TIL","HOSPITAL ADALBERTO STEEGER - TALAGANTE","HOSPITAL DR. LUIS CALVO MACKENNA","HOSPITAL BARROS LUCO TRUDEAU","HOSPITAL SAN JOSÉ DE MAIPO",null,"HOSPITAL CLÍNICO HERMINDA MARTÍN - CHILLÁN","HOSPITAL DE PUERTO OCTAY","CONSULTORIO RIO NEGRO","HOSPITAL LAS HIGUERAS - TALCAHUANO","HOSPITAL CLÍNICO REGIONAL- VALDIVIA","HOSPITAL CLAUDIO VICUÑA - SAN ANTONIO","HOSPITAL CENTRO GERIÁTRICO PAZ DE LA TARDE","SEREMI DE SALUD REGIÓN II","SEREMI DE AGRICULTURA REGIÓN II","ARMADA DE CHILE","SEREMI DE ECONOMÍA REGIÓN II","SEREMI DE EDUCACIÓN REGIÓN II","SEREMI DE ENERGÍA REGIÓN II","SEREMI DE HACIENDA REGIÓN II","SEREMI DE JUSTICIA REGIÓN II","SEREMI DE MINERÍA REGIÓN II","SEREMI DE OBRAS PÚBLICAS REGIÓN II","SEREMI DE SERVICIOS SOCIALES  REGIÓN II",null,null,"SEREMI DEL TRABAJO Y PREVISIÓN SOCIAL  REGIÓN II","SEREMI DE TRANSPORTES Y TELECOMUNICACIONES  REGIÓN II","SEREMI DE VIVIENDA Y URBANISMO REGIÓN II","SEREMI DE BIENES NACIONALES REGIÓN II","SEREMI DE MEDIO AMBIENTE REGIÓN II",null,null,null,null,null,null,null,"SEREMI DE DEPORTES REGIÓN II",null,null,"SERVICIO LOCAL DE EDUCACIÓN PÚBLICA HUASCO"]
["CLÍNICA GERIÁTRICA LIMACHE","DIRECCIÓN REGIONAL DE ATACAMA","GOBERNACIÓN PROVINCIAL ARICA","CONSULTORIO GENERAL URBANO Nº 2 LOS ANDES","HOSPITAL DR. CARLOS CISTERNAS - CALAMA","HOSPITAL DE PURÉN","HOSPITAL DE GALVARINO","HOSPITAL INTERCULTURAL KALLVU LLANKA DE CAÑETE",null,"HOSPITAL DR. JERÓNIMO MÉNDEZ ARANCIBIA - CHAÑARAL","DIRECCIÓN DE SALUD RURAL","HOSPITAL DE LOLOL","HOSPITAL DE MULCHÉN","HOSPITAL DE CASTRO","HOSPITAL CLÍNICO REGIONAL DR. GUILLERMO GRANT BENAVENTE","HOSPITAL DR. JOSÉ ARRAÑO - ANDACOLLO",null,"HOSPITAL DR. MARCO ANTONIO CHAMORRO - PORVENIR","HOSPITAL DE CUREPTO","HOSPITAL DE URGENCIA ASISTENCIA PÚBLICA DR. ALEJANDRO DEL RÍO","HOSPITAL DR. ROBERTO DEL RÍO","HOSPITAL DE CURACAVÍ","HOSPITAL DR. LUIS TISNÉ BROUSSE","HOSPITAL DE SAN LUIS","HOSPITAL CLÍNICO METROPOLITANO DE LA FLORIDA",null,"HOSPITAL DE BULNES","HOSPITAL DE PURRANQUE","HOSPITAL CHAITÉN","HOSPITAL PENCO - LIRQUÉN","HOSPITAL DE CORRAL","HOSPITAL DEL SALVADOR - VALPARAÍSO","HOSPITAL DE PETORCA","SEREMI DE SALUD REGIÓN III","SEREMI DE AGRICULTURA REGIÓN III","FUERZA AÉREA DE CHILE","SEREMI DE ECONOMÍA REGIÓN III","SEREMI DE EDUCACIÓN REGIÓN III","SEREMI DE ENERGÍA REGIÓN III","SEREMI DE HACIENDA REGIÓN III","SEREMI DE JUSTICIA REGIÓN III","SEREMI DE MINERÍA REGIÓN III","SEREMI DE OBRAS PÚBLICAS REGIÓN III","SEREMI DE SERVICIOS SOCIALES  REGIÓN III",null,null,"SEREMI DEL TRABAJO Y PREVISIÓN SOCIAL  REGIÓN III","SEREMI DE TRANSPORTES Y TELECOMUNICACIONES  REGIÓN III","SEREMI DE VIVIENDA Y URBANISMO REGIÓN III","SEREMI DE BIENES NACIONALES REGIÓN III","SEREMI DE MEDIO AMBIENTE REGIÓN III",null,null,null,null,null,null,null,"SEREMI DE DEPORTES REGIÓN III",null,null,"SERVICIO LOCAL DE EDUCACIÓN PÚBLICA COSTA ARAUCANÍA"]
["DIRECCIÓN C.SALUD Y REHABILITACIÓN","DIRECCIÓN REGIONAL DE AYSÉN","GOBERNACIÓN PROVINCIAL AYSÉN","CONSULTORIO GENERAL URBANO SAN FELIPE","HOSPITAL LEONARDO GUZMÁN - ANTOFAGASTA","HOSPITAL DR. DINO STAGNO M - TRAIGUÉN","HOSPITAL DE GORBEA","HOSPITAL PROVINCIAL DR. RAFAEL AVARÍA - CURANILAHUE",null,"HOSPITAL DR. MANUEL MAGALLANES MEDLING - HUASCO","HOSPITAL DE PUERTO AYSÉN","HOSPITAL DE MARCHIGÜE","HOSPITAL DE NACIMIENTO","HOSPITAL DE QUEILÉN","HOSPITAL CLORINDA AVELLO - SANTA JUANA","HOSPITAL SAN JUAN DE DIOS - COMBARBALÁ",null,null,"HOSPITAL DE HUALAÑÉ","HOSPITAL EL CARMEN DE MAIPÚ","INSTITUTO NACIONAL DEL CÁNCER DR. CAUPOLICÁN PARDO CORREA","HOSPITAL DE PEÑAFLOR","HOSPITAL HANGA ROA","HOSPITAL DR. EXEQUIEL GONZÁLEZ CORTÉS","CRS HOSPITAL PROVINCIA CORDILLERA",null,"HOSPITAL DE COELEMU","HOSPITAL DE RÍO NEGRO","HOSPITAL DE CALBUCO","CESFAM DE LIRQUÉN","HOSPITAL DE LANCO","HOSPITAL DR. EDO. PEREIRA RAMÍREZ - VALPARAÍSO","HOSPITAL DE QUILPUÉ","SEREMI DE SALUD REGIÓN IV","SEREMI DE AGRICULTURA REGIÓN IV",null,"SEREMI DE ECONOMÍA REGIÓN IV","SEREMI DE EDUCACIÓN REGIÓN IV","SEREMI DE ENERGÍA REGIÓN IV","SEREMI DE HACIENDA REGIÓN IV","SEREMI DE JUSTICIA REGIÓN IV","SEREMI DE MINERÍA REGIÓN IV","SEREMI DE OBRAS PÚBLICAS REGIÓN IV","SEREMI DE SERVICIOS SOCIALES  REGIÓN IV",null,null,"SEREMI DEL TRABAJO Y PREVISIÓN SOCIAL  REGIÓN IV","SEREMI DE TRANSPORTES Y TELECOMUNICACIONES  REGIÓN IV","SEREMI DE VIVIENDA Y URBANISMO REGIÓN IV","SEREMI DE BIENES NACIONALES REGIÓN IV","SEREMI DE MEDIO AMBIENTE REGIÓN IV",null,null,null,null,null,null,null,"SEREMI DE DEPORTES REGIÓN IV"]
["UNIDAD DE SALUD MENTAL LA FLORIDA","DIRECCIÓN REGIONAL DE COQUIMBO","GOBERNACIÓN PROVINCIAL BÍO- BÍO","HOSPITAL DE SAN CAMILO - SAN FELIPE","HOSPITAL MARCOS MACUADA - TOCOPILLA","HOSPITAL DR. MAURICIO HEYERMANN - ANGOL","HOSPITAL DE INTERCULTURA - NUEVA IMPERIAL","HOSPITAL SAN VICENTE DE ARAUCO",null,"HOSPITAL SAN JOSÉ DEL CARMEN - COPIAPÓ","HOSPITAL DR. JORGE IBAR - PUERTO CISNES","HOSPITAL DE NANCAGUA","HOSPITAL DE SANTA BÁRBARA","HOSPITAL DE QUELLÓN","HOSPITAL DE FLORIDA","HOSPITAL SAN JUAN DE DIOS - ILLAPEL",null,null,"HOSPITAL DE LICANTÉN","CENTRO METROPOLITANO DE ATENCIÓN PREHOSPITALARIA","INSTITUTO PSIQUIÁTRICO DR. JOSÉ HORWITZ BARAK","HOSPITAL DR. FÉLIX BULNES CERDA","INST. NAC.DE REHABILITACIÓN INFANTIL PRESIDENTE PEDRO AGUIRRE CERDA","HOSPITAL EL PINO",null,null,"HOSPITAL DE EL CARMEN","HOSPITAL MISIÓN SAN JUAN DE LA COSTA","HOSPITAL DE FRESIA",null,"HOSPITAL DE LOS LAGOS","HOSPITAL SAN JOSÉ - CASABLANCA","HOSPITAL DR. GUSTAVO FRICKE - VIÑA DEL MAR","SEREMI DE SALUD REGIÓN V","SEREMI DE AGRICULTURA REGIÓN V",null,"SEREMI DE ECONOMÍA REGIÓN V","SEREMI DE EDUCACIÓN REGIÓN V","SEREMI DE ENERGÍA REGIÓN V","SEREMI DE HACIENDA REGIÓN V","SEREMI DE JUSTICIA REGIÓN V","SEREMI DE MINERÍA REGIÓN V","SEREMI DE OBRAS PÚBLICAS REGIÓN V","SEREMI DE SERVICIOS SOCIALES  REGIÓN IX",null,null,"SEREMI DEL TRABAJO Y PREVISIÓN SOCIAL  REGIÓN V","SEREMI DE TRANSPORTES Y TELECOMUNICACIONES  REGIÓN V","SEREMI DE VIVIENDA Y URBANISMO REGIÓN V","SEREMI DE BIENES NACIONALES REGIÓN V","SEREMI DE MEDIO AMBIENTE REGIÓN V",null,null,null,null,null,null,null,"SEREMI DE DEPORTES REGIÓN V"]
["UNIDAD DE SALUD TALCAHUANO","DIRECCIÓN REGIONAL DE LA ARAUCANÍA","GOBERNACIÓN PROVINCIAL CACHAPOAL","HOSPITAL PSIQUIÁTRICO DR. PHILIPPE PINEL - PUTAENDO","CENTRO ASISTENCIAL NORTE","HOSPITAL DR. OSCAR HERNÁNDEZ E. - CURACAUTÍN","HOSPITAL DE LONCOCHE",null,null,null,"HOSPITAL DR. LEOPOLDO ORTEGA R. - CHILE CHICO","HOSPITAL DE PICHIDEGUA","HOSPITAL DE YUMBEL",null,"HOSPITAL DE LOTA","HOSPITAL SAN JUAN DE DIOS - LA SERENA",null,null,"HOSPITAL DE MOLINA",null,null,"HOSPITAL SAN JOSÉ - MELIPILLA","INSTITUTO DE NEUROCIRUGÍA DR. ALFONSO ASENJO","HOSPITAL PSIQUIÁTRICO EL PERAL",null,null,"HOSPITAL DE QUIRIHUE","HOSPITAL MISIÓN QUILACAHUÍN","HOSPITAL DE FRUTILLAR",null,"HOSPITAL DE PAILLACO",null,"HOSPITAL DR. MARIO SÁNCHEZ VERGARA - LA CALERA","SEREMI DE SALUD REGIÓN VI","SEREMI DE AGRICULTURA REGIÓN VI",null,"SEREMI DE ECONOMÍA REGIÓN VI","SEREMI DE EDUCACIÓN REGIÓN VI","SEREMI DE ENERGÍA REGIÓN VI","SEREMI DE HACIENDA REGIÓN VI","SEREMI DE JUSTICIA REGIÓN VI","SEREMI DE MINERÍA REGIÓN VI","SEREMI DE OBRAS PÚBLICAS REGIÓN VI","SEREMI DE SERVICIOS SOCIALES  REGIÓN METROPOLITANA",null,null,"SEREMI DEL TRABAJO Y PREVISIÓN SOCIAL  REGIÓN VI","SEREMI DE TRANSPORTES Y TELECOMUNICACIONES  REGIÓN VI","SEREMI DE VIVIENDA Y URBANISMO REGIÓN VI","SEREMI DE BIENES NACIONALES REGIÓN VI","SEREMI DE MEDIO AMBIENTE REGIÓN VI",null,null,null,null,null,null,null,"SEREMI DE DEPORTES REGIÓN VI"]
[null,"DIRECCIÓN REGIONAL DE LOS LAGOS","GOBERNACIÓN PROVINCIAL CAPITÁN PRAT","HOSPITAL SAN ANTONIO - PUTAENDO",null,"HOSPITAL SAN JOSÉ - VICTORIA","HOSPITAL DE PITRUFQUÉN",null,null,null,"HOSPITAL LORD COCHRANE","HOSPITAL DE PICHILEMU","HOSPITAL DR. ROBERTO MUÑOZ URRUTIA DE HUÉPIL",null,"HOSPITAL SAN JOSÉ - CORONEL","HOSPITAL SAN JUAN DE DIOS - VICUÑA",null,null,"HOSPITAL DE TENO",null,null,"HOSPITAL SAN JUAN DE DIOS - SANTIAGO","INSTITUTO NACIONAL DE ENFERMEDADES RESPIRATORIAS Y CIRUGÍA TORÁCICA",null,null,null,"HOSPITAL DE SAN CARLOS",null,"HOSPITAL DE FUTALEUFÚ",null,"HOSPITAL DE RÍO BUENO",null,"HOSPITAL DR. VÍCTOR HUGO MOLL - CABILDO","SEREMI DE SALUD REGIÓN VII","SEREMI DE AGRICULTURA REGIÓN VII",null,"SEREMI DE ECONOMÍA REGIÓN VII","SEREMI DE EDUCACIÓN REGIÓN VII","SEREMI DE ENERGÍA REGIÓN VII","SEREMI DE HACIENDA REGIÓN VII","SEREMI DE JUSTICIA REGIÓN VII","SEREMI DE MINERÍA REGIÓN VII","SEREMI DE OBRAS PÚBLICAS REGIÓN VII","SEREMI DE SERVICIOS SOCIALES  REGIÓN V",null,null,"SEREMI DEL TRABAJO Y PREVISIÓN SOCIAL  REGIÓN VII","SEREMI DE TRANSPORTES Y TELECOMUNICACIONES  REGIÓN VII","SEREMI DE VIVIENDA Y URBANISMO REGIÓN VII","SEREMI DE BIENES NACIONALES REGIÓN VII","SEREMI DE MEDIO AMBIENTE REGIÓN VII",null,null,null,null,null,null,null,"SEREMI DE DEPORTES REGIÓN VII"]
[null,"DIRECCIÓN REGIONAL DE LOS RIOS ","GOBERNACIÓN PROVINCIAL CARDENAL CARO","HOSPITAL SAN FRANCISCO - LLAY-LLAY",null,null,"HOSPITAL DE TOLTÉN",null,null,null,"HOSPITAL REGIONAL COYHAIQUE","HOSPITAL DE SANTA CRUZ",null,null,"HOSPITAL TRAUMATOLÓGICO - CONCEPCIÓN","HOSPITAL SAN PABLO - COQUIMBO",null,null,"HOSPITAL DR. ABEL FUENTEALBA LAGOS - SAN JAVIER",null,null,"INSTITUTO TRAUMATOLÓGICO DR. TEODORO GEBAUER","INSTITUTO NACIONAL GERIÁTRICO PRESIDENTE EDUARDO FREI MONTALVA",null,null,null,"HOSPITAL DR. PEDRO MORALES - YUNGAY",null,"HOSPITAL DE LLANQUIHUE",null,"HOSPITAL JUAN MOREY - LA UNIÓN",null,"HOSPITAL JUANA ROSS DE EDWARDS - PEÑABLANCA","SEREMI DE SALUD REGIÓN VIII","SEREMI DE AGRICULTURA REGIÓN VIII",null,"SEREMI DE ECONOMÍA REGIÓN VIII","SEREMI DE EDUCACIÓN REGIÓN VIII","SEREMI DE ENERGÍA REGIÓN VIII","SEREMI DE HACIENDA REGIÓN VIII","SEREMI DE JUSTICIA REGIÓN VIII","SEREMI DE MINERÍA REGIÓN VIII","SEREMI DE OBRAS PÚBLICAS REGIÓN VIII","SEREMI DE SERVICIOS SOCIALES  REGIÓN VI",null,null,"SEREMI DEL TRABAJO Y PREVISIÓN SOCIAL  REGIÓN VIII","SEREMI DE TRANSPORTES Y TELECOMUNICACIONES  REGIÓN VIII","SEREMI DE VIVIENDA Y URBANISMO REGIÓN VIII","SEREMI DE BIENES NACIONALES REGIÓN VIII","SEREMI DE MEDIO AMBIENTE REGIÓN VIII",null,null,null,null,null,null,null,"SEREMI DE DEPORTES REGIÓN VIII"]
[null,"DIRECCIÓN REGIONAL DE MAGALLANES","GOBERNACIÓN PROVINCIAL CAUQUENES","HOSPITAL SAN JUAN DE DIOS - LOS ANDES",null,null,"HOSPITAL DE VILCÚN",null,null,null,null,"HOSPITAL DEL SALVADOR - PEUMO",null,null,null,"HOSPITAL SAN PEDRO DE LOS VILOS",null,null,"HOSPITAL DR. BENJAMÍN PEDREROS - CHANCO",null,null,null,null,null,null,null,null,null,"HOSPITAL DE MAULLÍN",null,"HOSPITAL SANTA ELISA DE SAN JOSÉ DE LA MARIQUINA",null,"HOSPITAL SAN AGUSTÍN","SEREMI DE SALUD REGIÓN IX","SEREMI DE AGRICULTURA REGIÓN IX",null,"SEREMI DE ECONOMÍA REGIÓN IX","SEREMI DE EDUCACIÓN REGIÓN IX","SEREMI DE ENERGÍA REGIÓN IX","SEREMI DE HACIENDA REGIÓN IX","SEREMI DE JUSTICIA REGIÓN IX","SEREMI DE MINERÍA REGIÓN IX","SEREMI DE OBRAS PÚBLICAS REGIÓN IX","SEREMI DE SERVICIOS SOCIALES  REGIÓN VII",null,null,"SEREMI DEL TRABAJO Y PREVISIÓN SOCIAL  REGIÓN IX","SEREMI DE TRANSPORTES Y TELECOMUNICACIONES  REGIÓN IX","SEREMI DE VIVIENDA Y URBANISMO REGIÓN IX","SEREMI DE BIENES NACIONALES REGIÓN IX","SEREMI DE MEDIO AMBIENTE REGIÓN IX",null,null,null,null,null,null,null,"SEREMI DE DEPORTES REGIÓN IX"]
[null,"DIRECCIÓN REGIONAL DE O'HIGGINS","GOBERNACIÓN PROVINCIAL CAUTÍN",null,null,null,"HOSPITAL DE VILLARRICA",null,null,null,null,"HOSPITAL DR. RICARDO VALENZUELA SÁEZ - RENGO",null,null,null,null,null,null,"HOSPITAL DR. CÉSAR GARAVAGNO BUROTTO - TALCA",null,null,null,null,null,null,null,null,null,"HOSPITAL DE PALENA",null,null,null,"HOSPITAL SAN MARTÍN - QUILLOTA","SEREMI DE SALUD REGIÓN X","SEREMI DE AGRICULTURA REGIÓN X",null,"SEREMI DE ECONOMÍA REGIÓN X","SEREMI DE EDUCACIÓN REGIÓN X","SEREMI DE ENERGÍA REGIÓN X","SEREMI DE HACIENDA REGIÓN X","SEREMI DE JUSTICIA REGIÓN X","SEREMI DE MINERÍA REGIÓN X","SEREMI DE OBRAS PÚBLICAS REGIÓN X","SEREMI DE SERVICIOS SOCIALES  REGIÓN VIII",null,null,"SEREMI DEL TRABAJO Y PREVISIÓN SOCIAL  REGIÓN X","SEREMI DE TRANSPORTES Y TELECOMUNICACIONES  REGIÓN X","SEREMI DE VIVIENDA Y URBANISMO REGIÓN X","SEREMI DE BIENES NACIONALES REGIÓN X","SEREMI DE MEDIO AMBIENTE REGIÓN X",null,null,null,null,null,null,null,"SEREMI DE DEPORTES REGIÓN X"]
[null,"DIRECCIÓN REGIONAL DE TARAPACÁ","GOBERNACIÓN PROVINCIAL CHACABUCO",null,null,null,"HOSPITAL DR. ABRAHAM GODOY - LAUTARO",null,null,null,null,"HOSPITAL MERCEDES - CHIMBARONGO",null,null,null,null,null,null,"HOSPITAL SAN JOSÉ - PARRAL",null,null,null,null,null,null,null,null,null,"HOSPITAL DE PUERTO MONTT",null,null,null,"HOSPITAL SANTO TOMÁS - LIMACHE","SEREMI DE SALUD REGIÓN XI","SEREMI DE AGRICULTURA REGIÓN XI",null,"SEREMI DE ECONOMÍA REGIÓN XI","SEREMI DE EDUCACIÓN REGIÓN XI","SEREMI DE ENERGÍA REGIÓN XI","SEREMI DE HACIENDA REGIÓN XI","SEREMI DE JUSTICIA REGIÓN XI","SEREMI DE MINERÍA REGIÓN XI","SEREMI DE OBRAS PÚBLICAS REGIÓN XI","SEREMI DE SERVICIOS SOCIALES  REGIÓN X",null,null,"SEREMI DEL TRABAJO Y PREVISIÓN SOCIAL  REGIÓN XI","SEREMI DE TRANSPORTES Y TELECOMUNICACIONES  REGIÓN XI","SEREMI DE VIVIENDA Y URBANISMO REGIÓN XI","SEREMI DE BIENES NACIONALES REGIÓN XI","SEREMI DE MEDIO AMBIENTE REGIÓN XI",null,null,null,null,null,null,null,"SEREMI DE DEPORTES REGIÓN XI"]
[null,"DIRECCIÓN REGIONAL DE VALPARAÍSO","GOBERNACIÓN PROVINCIAL CHAÑARAL",null,null,null,"HOSPITAL DR. ARTURO HILLERNS LARRAÑAGA - SAAVEDRA",null,null,null,null,"HOSPITAL REGIONAL LIBERTADOR BERNARDO O’HIGGINS",null,null,null,null,null,null,"HOSPITAL SAN JUAN DE DIOS - CAUQUENES",null,null,null,null,null,null,null,null,null,null,null,null,null,null,"SEREMI DE SALUD REGIÓN XII","SEREMI DE AGRICULTURA REGIÓN XII",null,"SEREMI DE ECONOMÍA REGIÓN XII","SEREMI DE EDUCACIÓN REGIÓN XII","SEREMI DE ENERGÍA REGIÓN XII","SEREMI DE HACIENDA REGIÓN XII","SEREMI DE JUSTICIA REGIÓN XII","SEREMI DE MINERÍA REGIÓN XII","SEREMI DE OBRAS PÚBLICAS REGIÓN XII","SEREMI DE SERVICIOS SOCIALES  REGIÓN XI",null,null,"SEREMI DEL TRABAJO Y PREVISIÓN SOCIAL  REGIÓN XII","SEREMI DE TRANSPORTES Y TELECOMUNICACIONES  REGIÓN XII","SEREMI DE VIVIENDA Y URBANISMO REGIÓN XII","SEREMI DE BIENES NACIONALES REGIÓN XII","SEREMI DE MEDIO AMBIENTE REGIÓN XII",null,null,null,null,null,null,null,"SEREMI DE DEPORTES REGIÓN XII"]
[null,"DIRECCIÓN REGIONAL DEL BIO BÍO","GOBERNACIÓN PROVINCIAL CHILOÉ",null,null,null,"HOSPITAL DR. EDUARDO GONZÁLEZ GALENO - CUNCO",null,null,null,null,"HOSPITAL SAN JUAN DE DIOS - SAN FERNANDO",null,null,null,null,null,null,"HOSPITAL SAN JUAN DE DIOS DE CURICÓ",null,null,null,null,null,null,null,null,null,null,null,null,null,null,"SEREMI DE SALUD REGIÓN XIV","SEREMI DE AGRICULTURA REGIÓN XIV",null,"SEREMI DE ECONOMÍA REGIÓN XIV","SEREMI DE EDUCACIÓN REGIÓN XIV","SEREMI DE ENERGÍA REGIÓN XIV","SEREMI DE HACIENDA REGIÓN XIV","SEREMI DE JUSTICIA REGIÓN XIV","SEREMI DE MINERÍA REGIÓN XIV","SEREMI DE OBRAS PÚBLICAS REGIÓN XIV","SEREMI DE SERVICIOS SOCIALES  REGIÓN XII",null,null,"SEREMI DEL TRABAJO Y PREVISIÓN SOCIAL  REGIÓN XIV","SEREMI DE TRANSPORTES Y TELECOMUNICACIONES  REGIÓN XIV","SEREMI DE VIVIENDA Y URBANISMO REGIÓN XIV","SEREMI DE BIENES NACIONALES REGIÓN XIV","SEREMI DE MEDIO AMBIENTE REGIÓN XIV",null,null,null,null,null,null,null,"SEREMI DE DEPORTES REGIÓN XIV"]
[null,"DIRECCIÓN REGIONAL DEL MAULE","GOBERNACIÓN PROVINCIAL CHOAPA",null,null,null,"HOSPITAL DR. HERNÁN HENRÍQUEZ ARAVENA - TEMUCO",null,null,null,null,"HOSPITAL SAN VICENTE DE TAGUA-TAGUA",null,null,null,null,null,null,null,null,null,null,null,null,null,null,null,null,null,null,null,null,null,"SEREMI DE SALUD REGIÓN XV","SEREMI DE AGRICULTURA REGIÓN XV",null,"SEREMI DE ECONOMÍA REGIÓN XV","SEREMI DE EDUCACIÓN REGIÓN XV","SEREMI DE ENERGÍA REGIÓN XV","SEREMI DE HACIENDA REGIÓN XV","SEREMI DE JUSTICIA REGIÓN XV","SEREMI DE MINERÍA REGIÓN XV","SEREMI DE OBRAS PÚBLICAS REGIÓN XV","SEREMI DE SERVICIOS SOCIALES  REGIÓN XIV",null,null,"SEREMI DEL TRABAJO Y PREVISIÓN SOCIAL  REGIÓN XV","SEREMI DE TRANSPORTES Y TELECOMUNICACIONES  REGIÓN XV","SEREMI DE VIVIENDA Y URBANISMO REGIÓN XV","SEREMI DE BIENES NACIONALES REGIÓN XV","SEREMI DE MEDIO AMBIENTE REGIÓN XV",null,null,null,null,null,null,null,"SEREMI DE DEPORTES REGIÓN XV"]
[null,"OFICINA LOCAL ARAUCO ","GOBERNACIÓN PROVINCIAL COLCHAGUA",null,null,null,null,null,null,null,null,"HOSPITAL SANTA FILOMENA - GRANEROS",null,null,null,null,null,null,null,null,null,null,null,null,null,null,null,null,null,null,null,null,null,"SEREMI DE SALUD REGIÓN METROPOLITANA","SEREMI DE AGRICULTURA REGIÓN METROPOLITANA",null,"SEREMI DE ECONOMÍA REGIÓN METROPOLITANA","SEREMI DE EDUCACIÓN REGIÓN METROPOLITANA","SEREMI DE ENERGÍA REGIÓN METROPOLITANA","SEREMI DE HACIENDA REGIÓN METROPOLITANA","SEREMI DE JUSTICIA REGIÓN METROPOLITANA","SEREMI DE MINERÍA REGIÓN METROPOLITANA","SEREMI DE OBRAS PÚBLICAS REGIÓN METROPOLITANA","SEREMI DE SERVICIOS SOCIALES  REGIÓN XV",null,null,"SEREMI DEL TRABAJO Y PREVISIÓN SOCIAL  REGIÓN METROPOLITANA","SEREMI DE TRANSPORTES Y TELECOMUNICACIONES  REGIÓN METROPOLITANA","SEREMI DE VIVIENDA Y URBANISMO REGIÓN METROPOLITANA","SEREMI  DE BIENES NACIONALES REGIÓN METROPOLITANA","SEREMI DE MEDIO AMBIENTE REGIÓN METROPOLITANA",null,null,null,null,null,null,null,"SEREMI DE DEPORTES REGIÓN METROPOLITANA"]
[null,"OFICINA LOCAL DE CHILLÁN","GOBERNACIÓN PROVINCIAL CONCEPCIÓN"]
[null,"OFICINA LOCAL DE CHILOÉ","GOBERNACIÓN PROVINCIAL COPIAPÓ"]
[null,"OFICINA LOCAL DE ISLA DE PASCUA","GOBERNACIÓN PROVINCIAL CORDILLERA"]
[null,"OFICINA LOCAL DE LA UNIÓN ","GOBERNACIÓN PROVINCIAL COYHAIQUE"]
[{"$f":"UPPER(A66)","v":""},"OFICINA LOCAL DE LOS ANGELES ","GOBERNACIÓN PROVINCIAL CURICÓ"]
[{"$f":"UPPER(A67)","v":""},"OFICINA LOCAL DE OSORNO","GOBERNACIÓN PROVINCIAL DIGUILLÍN"]
[{"$f":"UPPER(A68)","v":""},"OFICINA LOCAL DE PALENA ","GOBERNACIÓN PROVINCIAL EL LOA"]
[{"$f":"UPPER(A69)","v":""},"OFICINA LOCAL DE PUERTO NATALES","GOBERNACIÓN PROVINCIAL ELQUI"]
[null,"OFICINA LOCAL DE SAN PEDRO DE ATACAMA ","GOBERNACIÓN PROVINCIAL GENERAL CARRERA"]
[null,null,"GOBERNACIÓN PROVINCIAL HUASCO"]
[null,null,"GOBERNACIÓN PROVINCIAL IQUIQUE"]
[null,null,"GOBERNACIÓN PROVINCIAL ISLA DE PASCUA"]
[null,null,"GOBERNACIÓN PROVINCIAL ITATA"]
[null,null,"GOBERNACIÓN PROVINCIAL LIMARÍ"]
[null,null,"GOBERNACIÓN PROVINCIAL LINARES"]
[null,null,"GOBERNACIÓN PROVINCIAL LLANQUIHUE"]
[null,null,"GOBERNACIÓN PROVINCIAL LOS ANDES"]
[null,null,"GOBERNACIÓN PROVINCIAL MAGALLANES"]
[null,null,"GOBERNACIÓN PROVINCIAL MAIPO"]
[null,null,"GOBERNACIÓN PROVINCIAL MALLECO"]
[null,null,"GOBERNACIÓN PROVINCIAL MARGA MARGA"]
[null,null,"GOBERNACIÓN PROVINCIAL MELIPILLA"]
[null,null,"GOBERNACIÓN PROVINCIAL ÑUBLE"]
[null,null,"GOBERNACIÓN PROVINCIAL OSORNO"]
[null,null,"GOBERNACIÓN PROVINCIAL PALENA"]
[null,null,"GOBERNACIÓN PROVINCIAL PARINACOTA"]
[null,null,"GOBERNACIÓN PROVINCIAL PETORCA"]
[null,null,"GOBERNACIÓN PROVINCIAL PUNILLA"]
[null,null,"GOBERNACIÓN PROVINCIAL QUILLOTA"]
[null,null,"GOBERNACIÓN PROVINCIAL RANCO"]
[null,null,"GOBERNACIÓN PROVINCIAL SAN ANTONIO"]
[null,null,"GOBERNACIÓN PROVINCIAL SAN FELIPE"]
[null,null,"GOBERNACIÓN PROVINCIAL TALAGANTE"]
[null,null,"GOBERNACIÓN PROVINCIAL TALCA"]
[null,null,"GOBERNACIÓN PROVINCIAL TAMARUGAL"]
[null,null,"GOBERNACIÓN PROVINCIAL TIERRA DEL FUEGO"]
[null,null,"GOBERNACIÓN PROVINCIAL TOCOPILLA"]
[null,null,"GOBERNACIÓN PROVINCIAL ÚLTIMA ESPERANZA"]
[null,null,"GOBERNACIÓN PROVINCIAL VALDIVIA"]
[null,null,"GOBERNACIÓN PROVINCIAL VALPARAÍSO"]
[null,null,"INTENDENCIA REGIONAL ANTOFAGASTA"]
[null,null,"INTENDENCIA REGIONAL ARICA PARINACOTA"]
[null,null,"INTENDENCIA REGIONAL ATACAMA"]
[null,null,"INTENDENCIA REGIONAL AYSÉN"]
[null,null,"INTENDENCIA REGIONAL BÍO BÍO"]
[null,null,"INTENDENCIA REGIONAL COQUIMBO"]
[null,null,"INTENDENCIA REGIONAL LA ARAUCANÍA"]
[null,null,"INTENDENCIA REGIONAL LIBERTADOR B. O´HIGGINS"]
[null,null,"INTENDENCIA REGIONAL LOS LAGOS"]
[null,null,"INTENDENCIA REGIONAL LOS RÍOS"]
[null,null,"INTENDENCIA REGIONAL MAGALLANES Y LA ANTÁRTICA"]
[null,null,"INTENDENCIA REGIONAL MAULE"]
[null,null,"INTENDENCIA REGIONAL METROPOLITANA"]
[null,null,"INTENDENCIA REGIONAL TARAPACÁ"]
[null,null,"INTENDENCIA REGIONAL VALPARAÍSO"]
[]
[]
[]
[]
[]
[]
[]
[]
[]
[]
[]
[]
[]
[]
[]
[]
[]
[]
[]
[]
[]
[]
[]
[]
[]
[]
[]
[]
[]
[]
[]
[]
[]
[]
[]
[]
[]
[]
[]
[]
[]
[]
[]
[]
[]
[]
[]
[]
[]
[]
[]
[]
[]
[]
[]
[]
[]
[]
[]
[]
[]
[]
[]
[]
[]
[]
[]
[]
[]
[]
[]
[]
[]
[]
[]
[]
[]
[]
[]
[]
[]
[]
[]
[]
[]
[]
[]
[]
[]
[]
[]
[]
[]
[]
[]
[]
[]
[]
[]
[]
[]
[]
[]
[]
[]
[]
[]
[]
[]
[]
[]
[]
[]
[]
[]
[]
[]
[]
[]
[]
[]
[]
[]
[]
[]
[]
[]
[]
[]
[]
[]
[]
[]
[]
[]
[]
[]
[]
[]
[]
[]
[]
[]
[]
[]
[]
[]
[]
[]
[]
[]
[]
[]
[]
[]
[]
[]
[]
[]
[]
[]
[]
[]
[]
[]
[null,null,{"$f":"UPPER(C217)","v":""}]

{"sheet":"Carta Gantt Metas_respaldo","index":9,"n_rows":5,"n_cols":41,"rows_kept":5,"cut":false,"hidden":true,"merged":[[2,1,2,16],[3,1,3,4],[3,5,3,16],[3,17,3,28],[3,29,3,40]]}
[]
[]
[null,"Carta Gantt de Cumplimiento de Metas Periodo 2016-2018"]
[null,"Iniciativas y Metas Contenidas en el Plan Estratégico de Auditoría Interna",null,null,null,2016,null,null,null,null,null,null,null,null,null,null,null,2017,null,null,null,null,null,null,null,null,null,null,null,2018]
[null,"N° iniciativa","Iniciativa","N° Meta","Meta","Enero","Febrero","Marzo","Abril","Mayo","Junio","Julio","Agosto","Septiembre","Octubre","Noviembre","Diciembre","Enero","Febrero","Marzo","Abril","Mayo","Junio","Julio","Agosto","Septiembre","Octubre","Noviembre","Diciembre","Enero","Febrero","Marzo","Abril","Mayo","Junio","Julio","Agosto","Septiembre","Octubre","Noviembre","Diciembre"]

{"sheet":"Carta Gantt Tareas_respaldo","index":10,"n_rows":4,"n_cols":41,"rows_kept":4,"cut":false,"hidden":true,"merged":[[1,1,1,16],[2,1,2,4],[2,5,2,16],[2,17,2,28],[2,29,2,40]]}
[]
[null,"Carta Gantt de Cumplimiento de Tareas Periodo 2016-2018"]
[null,"Iniciativas y Tareas Contenidas en el Plan Estratégico de Auditoría Interna",null,null,null,2016,null,null,null,null,null,null,null,null,null,null,null,2017,null,null,null,null,null,null,null,null,null,null,null,2018]
[null,"N° iniciativa","Iniciativa","N°  Tarea","Tarea","Enero","Febrero","Marzo","Abril","Mayo","Junio","Julio","Agosto","Septiembre","Octubre","Noviembre","Diciembre","Enero","Febrero","Marzo","Abril","Mayo","Junio","Julio","Agosto","Septiembre","Octubre","Noviembre","Diciembre","Enero","Febrero","Marzo","Abril","Mayo","Junio","Julio","Agosto","Septiembre","Octubre","Noviembre","Diciembre"]

{"sheet":"Datos","index":11,"n_rows":7,"n_cols":3,"rows_kept":7,"cut":false,"hidden":true,"merged":[]}
["SI"]
["NO","Posicionamiento Organizacional","01"]
[null,"Procesos de Trabajo","02"]
[null,"Recursos Humanos","03"]
[null,null,"04"]
[null,null,"05"]
[null,null,"06"]